bitfinex/quotes_BTCUSD_20250422
["timestamp","ask_amount","ask_price","bid_price","bid_amount"]
[1745336884649,0.00831996,90618.0,90609.0,0.001]
[1745336884832,0.11375594,90618.0,90609.0,0.003]
[1745336885030,0.11375594,90617.0,90609.0,0.00346068]
[1745336885537,0.11375594,90617.0,90609.0,0.00146068]
[1745336885974,0.00821332,90618.0,90609.0,0.00146068]
[1745336886295,0.11375594,90618.0,90609.0,0.00146068]
[1745336886947,0.11375594,90618.0,90610.0,0.03958339]
[1745336887307,0.34,90622.0,90610.0,0.03958339]
[1745336887308,0.331,90623.0,90611.0,0.32072307]
[1745336887511,0.331,90623.0,90613.0,0.1]
[1745336888849,0.332,90623.0,90613.0,0.1]
[1745336889016,0.332,90623.0,90614.0,0.05199557]
[1745336889474,0.325,90623.0,90614.0,0.05199557]
[1745336890002,0.33336984,90623.0,90614.0,0.05199557]
[1745336890116,0.33336984,90623.0,90609.0,0.00146068]
[1745336890117,0.11375594,90622.0,90612.0,0.1]
[1745336890514,0.324,90623.0,90612.0,0.1]
[1745336890757,0.325,90623.0,90612.0,0.1]
[1745336891162,0.324,90623.0,90613.0,0.00220691]
[1745336891319,0.324,90623.0,90614.0,0.07187715]
[1745336891767,0.01454085,90639.0,90623.0,0.1]
[1745336891992,0.11375594,90638.0,90623.0,0.1]
[1745336892170,0.11375594,90638.0,90623.0,0.101]
[1745336893677,0.12215076,90638.0,90623.0,0.101]
[1745336893874,0.12215076,90638.0,90624.0,0.01970181]
[1745336894662,0.12515076,90638.0,90624.0,0.06970181]
[1745336894970,0.12515076,90638.0,90624.0,0.11970181]
[1745336895178,0.12215076,90638.0,90624.0,0.11970181]
[1745336895379,0.12615076,90638.0,90624.0,0.11970181]
[1745336895614,0.12615076,90638.0,90625.0,0.05259925]
[1745336896957,0.12215076,90638.0,90628.0,0.3943732]
[1745336897107,0.11915076,90638.0,90625.0,0.05259925]
[1745336897478,0.11915076,90638.0,90634.0,0.1]
[1745336897479,0.004,90638.0,90634.0,0.1]
[1745336898285,0.11375594,90638.0,90625.0,0.1]
[1745336898618,0.11375594,90638.0,90626.0,0.01316193]
[1745336898817,0.11675594,90638.0,90626.0,0.01316193]
[1745336899024,0.003,90638.0,90637.0,0.1]
[1745336900150,0.00837501,90652.0,90637.0,0.1]
[1745336900494,0.00056095,90649.0,90641.0,0.1]
[1745336900639,0.00056095,90649.0,90642.0,0.01]
[1745336902101,0.00056095,90649.0,90633.0,0.22066981]
[1745336902267,0.00056095,90649.0,90632.0,0.17006809]
[1745336902462,0.00056095,90649.0,90633.0,0.22066984]
[1745336902667,0.00056095,90649.0,90616.0,0.0461]
[1745336902668,0.34,90647.0,90616.0,0.0461]
[1745336902888,0.34,90645.0,90623.0,0.22169396]
[1745336903087,0.11375594,90644.0,90623.0,0.22169396]
[1745336903490,0.11375594,90644.0,90624.0,0.22069037]
[1745336903692,0.11375594,90644.0,90624.0,0.00220667]
[1745336903893,0.11375594,90644.0,90623.0,0.001]
[1745336904164,0.01454085,90643.0,90623.0,0.001]
[1745336904334,0.01454085,90641.0,90624.0,0.00688853]
[1745336904538,0.01454085,90639.0,90624.0,0.00688853]
[1745336904706,0.11375594,90638.0,90623.0,0.001]
[1745336904912,0.10675594,90638.0,90623.0,0.003]
[1745336905769,0.10675594,90638.0,90624.0,0.0292588]
[1745336905978,0.10675594,90638.0,90624.0,0.00688866]
[1745336906110,0.10675594,90638.0,90623.0,0.003]
[1745336906316,0.10675594,90638.0,90623.0,0.001]
[1745336906657,0.10675594,90638.0,90624.0,0.00988866]
[1745336907046,0.10675594,90638.0,90623.0,0.001]
[1745336907407,0.10675594,90638.0,90623.0,0.004]
[1745336908701,0.01103399,90629.0,90623.0,0.004]
[1745336908905,0.11375594,90628.0,90623.0,0.004]
[1745336909617,0.11375594,90628.0,90623.0,0.001]
[1745336909806,0.11375594,90628.0,90623.0,0.004]
[1745336910220,0.12194968,90628.0,90623.0,0.001]
[1745336910634,0.00919374,90628.0,90623.0,0.001]
[1745336912605,0.00219374,90628.0,90623.0,0.001]
[1745336912814,0.001,90628.0,90623.0,0.001]
[1745336913607,0.28173294,90624.0,90623.0,0.001]
[1745336913795,0.44078888,90624.0,90623.0,0.001]
[1745336917077,0.44378888,90624.0,90623.0,0.001]
[1745336917634,0.44078888,90624.0,90623.0,0.001]
[1745336918010,0.44378888,90624.0,90623.0,0.001]
[1745336919120,0.01103764,90599.0,90591.0,0.0004]
[1745336919328,0.11375594,90598.0,90591.0,0.0004]
[1745336919901,0.01103789,90597.0,90591.0,0.0004]
[1745336920108,0.11375594,90596.0,90591.0,0.0004]
[1745336920315,0.01454085,90604.0,90591.0,0.0004]
[1745336920515,0.01070988,90612.0,90592.0,0.08895659]
[1745336920709,0.01070988,90612.0,90593.0,0.04920921]
[1745336920917,0.01103752,90600.0,90593.0,0.04920921]
[1745336921116,0.11375594,90600.0,90591.0,0.00086068]
[1745336923061,0.11375594,90600.0,90591.0,0.00286068]
[1745336923768,0.11375594,90600.0,90591.0,0.00086068]
[1745336924376,0.11375594,90600.0,90591.0,0.00286068]
[1745336927081,0.12479346,90600.0,90591.0,0.00286068]
[1745336927355,0.01103764,90599.0,90591.0,0.00286068]
[1745336927571,0.01103825,90594.0,90591.0,0.00286068]
[1745336927720,0.11375594,90593.0,90591.0,0.00286068]
[1745336928128,0.01103825,90594.0,90591.0,0.00286068]
[1745336928292,0.34556103,90594.0,90591.0,0.00286068]
[1745336928494,0.12479419,90594.0,90591.0,0.00286068]
[1745336928776,0.22076872,90593.0,90591.0,0.00286068]
[1745336928915,0.22077004,90592.0,90591.0,0.00086068]
[1745336929100,0.23179757,90597.0,90591.0,0.00086068]
[1745336929300,0.01103777,90598.0,90591.0,0.00186068]
[1745336929873,0.01103789,90597.0,90591.0,0.00086068]
[1745336930104,0.23179438,90598.0,90591.0,0.00086068]
[1745336930300,0.17620184,90606.0,90591.0,0.00186068]
[1745336930499,0.17620184,90606.0,90592.0,0.03979279]
[1745336930701,0.17620184,90606.0,90593.0,0.0978]
[1745336930838,0.00812184,90606.0,90594.0,0.00220736]
[1745336931027,0.01103509,90620.0,90594.0,0.00220736]
[1745336931222,0.22071453,90615.0,90593.0,0.0978]
[1745336931426,0.22072317,90612.0,90594.0,0.03178617]
[1745336931634,0.01103618,90611.0,90593.0,0.0978]
[1745336931921,0.11375594,90610.0,90591.0,0.00186068]
[1745336932268,0.12186073,90610.0,90591.0,0.00086068]
[1745336933271,0.12186073,90610.0,90591.0,0.00186068]
[1745336935452,0.00810479,90610.0,90592.0,0.11375594]
[1745336935849,0.17088824,90618.0,90592.0,0.11375594]
[1745336936053,0.01103557,90616.0,90592.0,0.11375594]
[1745336936258,0.23174472,90617.0,90592.0,0.11375594]
[1745336936428,0.22071416,90615.0,90591.0,0.00086068]
[1745336936630,0.01103594,90613.0,90591.0,0.00086068]
[1745336936967,0.11375594,90612.0,90591.0,0.00086068]
[1745336937112,0.11375594,90612.0,90592.0,0.04482353]
[1745336937319,0.11375594,90612.0,90590.0,0.27045035]
[1745336937521,0.11375594,90612.0,90590.0,0.39447498]
[1745336938438,0.11375594,90612.0,90590.0,0.00010178]
[1745336938624,0.11375594,90612.0,90590.0,0.61745564]
[1745336938824,0.11375594,90612.0,90590.0,0.39447498]
[1745336939247,0.11375594,90612.0,90590.0,0.39547498]
[1745336939660,0.11375594,90612.0,90590.0,0.61624882]
[1745336939863,0.11375594,90612.0,90591.0,0.00220745]
[1745336940266,0.00818834,90617.0,90592.0,0.11375594]
[1745336940528,0.16712,90623.0,90600.0,0.3943732]
[1745336940739,0.16712,90623.0,90604.0,0.0499]
[1745336941136,0.35454085,90633.0,90604.0,0.06047354]
[1745336941328,0.01103216,90644.0,90620.0,0.3943732]
[1745336941532,0.11375594,90643.0,90620.0,0.3943732]
[1745336941738,0.0008228,90649.0,90645.0,0.22063888]
[1745336941739,0.0004237,90647.0,90645.0,0.22063888]
[1745336941945,0.0004237,90647.0,90646.0,0.00220612]
[1745336942160,0.0004237,90647.0,90637.0,0.3943732]
[1745336942364,0.0004237,90647.0,90638.0,0.11375594]
[1745336942763,0.00088467,90647.0,90638.0,0.11375594]
[1745336942972,0.00188467,90647.0,90638.0,0.1247224]
[1745336943613,0.00088467,90647.0,90638.0,0.1247224]
[1745336943819,0.00088467,90647.0,90641.0,0.22064977]
[1745336944018,0.00088467,90647.0,90643.0,0.34]
[1745336944230,0.00088467,90647.0,90644.0,0.34220601]
[1745336944428,0.00088467,90647.0,90645.0,0.0451]
[1745336944560,0.00088467,90647.0,90646.0,0.00220601]
[1745336944761,0.00088467,90647.0,90646.0,0.34220601]
[1745336944980,0.00088467,90647.0,90646.0,0.34]
[1745336945315,0.00088467,90647.0,90646.0,0.45375594]
[1745336945494,0.0004236,90664.0,90646.0,0.45375594]
[1745336945495,0.01102547,90699.0,90658.0,0.05613046]
[1745336945693,0.01102657,90690.0,90659.0,0.11375594]
[1745336945929,0.0004237,90684.0,90659.0,0.11375594]
[1745336946320,0.0004237,90684.0,90662.0,0.22059867]
[1745336946496,0.0004237,90684.0,90663.0,0.2205966]
[1745336946695,0.0004237,90684.0,90661.0,0.22060202]
[1745336946900,0.0004237,90684.0,90661.0,0.11375594]
[1745336947161,0.11375594,90683.0,90658.0,0.0451]
[1745336948539,0.10675594,90683.0,90658.0,0.0451]
[1745336948769,0.10675594,90683.0,90646.0,0.0499]
[1745336948770,0.01454085,90677.0,90646.0,0.0499]
[1745336948985,0.01454085,90675.0,90646.0,0.0499]
[1745336949199,0.01454085,90673.0,90646.0,0.0499]
[1745336949390,0.11375594,90672.0,90658.0,0.001]
[1745336949834,0.11375594,90672.0,90646.0,0.0499]
[1745336950325,0.01454085,90673.0,90646.0,0.0499]
[1745336950326,0.01454085,90681.0,90650.0,0.3943732]
[1745336950591,0.171492,90711.0,90660.0,0.3943732]
[1745336950795,0.171492,90711.0,90661.0,0.11375594]
[1745336950796,0.05982608,90694.0,90661.0,0.11375594]
[1745336950990,0.23155343,90692.0,90661.0,0.11375594]
[1745336951199,0.01102633,90692.0,90661.0,0.3343574]
[1745336951399,0.0110262,90693.0,90662.0,0.2205988]
[1745336951607,0.0488,90694.0,90667.0,0.22058685]
[1745336951821,0.0488,90694.0,90668.0,0.00220558]
[1745336951944,0.0488,90694.0,90667.0,0.22058742]
[1745336952553,0.0488,90694.0,90665.0,0.0471]
[1745336952554,0.096023,90703.0,90671.0,0.0483]
[1745336952754,0.0014237,90684.0,90672.0,0.00220551]
[1745336953031,0.0014237,90684.0,90671.0,0.05704511]
[1745336953238,0.0004237,90684.0,90671.0,0.05704511]
[1745336953645,0.0004237,90684.0,90671.0,0.00874511]
[1745336954138,0.0004237,90684.0,90666.0,0.34]
[1745336954341,0.0004237,90684.0,90683.0,0.08895659]
[1745336954466,0.0004237,90684.0,90683.0,0.00889566]
[1745336955758,0.0024237,90684.0,90683.0,0.00889566]
[1745336956194,0.0004237,90684.0,90674.0,0.3943732]
[1745336956369,0.0004237,90684.0,90675.0,0.11375594]
[1745336956600,0.0004237,90684.0,90676.0,0.22056355]
[1745336956601,0.0024237,90684.0,90676.0,0.22056355]
[1745336956940,0.0024237,90684.0,90677.0,0.11375594]
[1745336957144,0.0004237,90684.0,90677.0,0.11375594]
[1745336957356,0.0004237,90684.0,90677.0,0.33431874]
[1745336957564,0.0004237,90684.0,90678.0,0.2205589]
[1745336957743,0.0004237,90684.0,90678.0,0.22056066]
[1745336958477,0.0014237,90684.0,90678.0,0.22056066]
[1745336959030,0.0014237,90684.0,90674.0,0.3943732]
[1745336959031,0.0004237,90684.0,90674.0,0.3943732]
[1745336959239,0.0004237,90684.0,90665.0,0.26769092]
[1745336959240,0.0024237,90684.0,90673.0,0.22057062]
[1745336959437,0.0024237,90684.0,90672.0,0.22057339]
[1745336959651,0.0024237,90684.0,90676.0,0.22056427]
[1745336959857,0.0024237,90684.0,90677.0,0.00220533]
[1745336960042,0.0004237,90684.0,90676.0,0.22056427]
[1745336960238,0.0014237,90684.0,90666.0,0.00851312]
[1745336960443,0.0014237,90684.0,90662.0,0.22059808]
[1745336960647,0.0014237,90684.0,90665.0,0.34]
[1745336960943,0.0014237,90684.0,90665.0,0.34859527]
[1745336961541,0.04336198,90692.0,90665.0,0.34859527]
[1745336961868,0.002,90684.0,90666.0,0.0022056]
[1745336962070,0.002,90684.0,90665.0,0.34873355]
[1745336962507,0.01102657,90690.0,90665.0,0.00013828]
[1745336962508,0.3943732,90680.0,90665.0,0.00013828]
[1745336962705,0.3943732,90680.0,90665.0,0.00213828]
[1745336962865,0.40540099,90680.0,90665.0,0.00213828]
[1745336963066,0.40540099,90680.0,90665.0,0.00013828]
[1745336963320,0.11375594,90679.0,90648.0,0.09475459]
[1745336963543,0.11375594,90679.0,90665.0,0.002]
[1745336964027,0.00013802,90680.0,90665.0,0.002]
[1745336964206,0.00013802,90680.0,90666.0,0.00220575]
[1745336964742,0.00013802,90680.0,90661.0,0.0022056]
[1745336964977,0.00013802,90680.0,90665.0,0.003]
[1745336965430,0.00013802,90680.0,90661.0,0.11596154]
[1745336965749,0.00013802,90680.0,90670.0,0.3943732]
[1745336965901,0.00013802,90680.0,90671.0,0.11375594]
[1745336966250,0.00013802,90680.0,90672.0,0.00220535]
[1745336966968,0.00013802,90680.0,90678.0,0.22055943]
[1745336967170,0.00013802,90680.0,90679.0,0.11596115]
[1745336968934,0.00013802,90680.0,90679.0,0.12284447]
[1745336969062,0.00213802,90680.0,90679.0,0.12284447]
[1745336969276,0.04887334,90706.0,90681.0,0.01102766]
[1745336969471,0.04887334,90706.0,90688.0,0.22053525]
[1745336969699,0.04887334,90706.0,90686.0,0.2205412]
[1745336969946,0.00821232,90706.0,90687.0,0.22274268]
[1745336970158,0.1664229,90708.0,90696.0,0.3943732]
[1745336970159,0.0004229,90708.0,90696.0,0.3943732]
[1745336970368,0.0001381,90708.0,90696.0,0.3943732]
[1745336970509,0.0001381,90708.0,90696.0,0.00841554]
[1745336970880,0.0001381,90708.0,90697.0,0.00688243]
[1745336971080,0.0001381,90708.0,90698.0,0.00688243]
[1745336971229,0.002,90706.0,90699.0,0.00220487]
[1745336971430,0.002,90706.0,90700.0,0.00688243]
[1745336972006,0.002,90706.0,90701.0,0.00688243]
[1745336972199,0.0001381,90708.0,90702.0,0.00688243]
[1745336972511,0.0041381,90708.0,90702.0,0.00688243]
[1745336972920,0.0041381,90708.0,90703.0,0.00688243]
[1745336973122,0.11789404,90708.0,90703.0,0.01032375]
[1745336973526,0.12891842,90708.0,90704.0,0.00688243]
[1745336973758,0.12491842,90708.0,90704.0,0.00688243]
[1745336973967,0.12491842,90708.0,90705.0,0.01032375]
[1745336974192,0.11389404,90708.0,90705.0,0.01032375]
[1745336974598,0.0001381,90708.0,90706.0,0.00688243]
[1745336974792,0.0001381,90708.0,90705.0,0.00344132]
[1745336975022,0.0001381,90708.0,90707.0,0.00344132]
[1745336976909,0.0382381,90716.0,90707.0,0.00344132]
[1745336977287,0.0382381,90716.0,90690.0,0.34]
[1745336977288,0.0382381,90716.0,90708.0,0.00344132]
[1745336978117,0.0402381,90716.0,90690.0,0.0001381]
[1745336978312,0.01102377,90713.0,90690.0,0.0001381]
[1745336978514,0.01102426,90709.0,90690.0,0.0001381]
[1745336978728,0.22051341,90698.0,90690.0,0.0001381]
[1745336978908,0.0492,90699.0,90690.0,0.0001381]
[1745336979115,0.0110256,90698.0,90690.0,0.0001381]
[1745336979313,0.16295594,90699.0,90690.0,0.0001381]
[1745336979713,0.11375594,90699.0,90690.0,0.0001381]
[1745336979948,0.01102426,90709.0,90690.0,0.0001381]
[1745336980152,0.1247802,90709.0,90690.0,0.0001381]
[1745336980368,0.11375594,90709.0,90690.0,0.0001381]
[1745336981107,0.11575594,90709.0,90690.0,0.0001381]
[1745336981535,0.11375594,90708.0,90690.0,0.0001381]
[1745336981909,0.01454085,90706.0,90690.0,0.0001381]
[1745336982115,0.11375594,90705.0,90690.0,0.0001381]
[1745336982819,0.11375594,90705.0,90678.0,0.24869924]
[1745336982960,0.11375594,90705.0,90677.0,0.22056147]
[1745336983175,0.11375594,90705.0,90678.0,0.22056003]
[1745336983378,0.11375594,90705.0,90678.0,0.22056019]
[1745336983613,0.11375594,90705.0,90680.0,0.2205548]
[1745336983809,0.11375594,90705.0,90681.0,0.0022053]
[1745336984014,0.002,90708.0,90682.0,0.33430687]
[1745336984216,0.00013802,90708.0,90682.0,0.11375594]
[1745336984538,0.00013802,90708.0,90685.0,0.22054336]
[1745336984742,0.15817802,90711.0,90693.0,0.22052303]
[1745336984984,0.15817802,90711.0,90693.0,0.00013802]
[1745336985131,0.001,90708.0,90693.0,0.00013802]
[1745336985564,0.001,90708.0,90697.0,0.22051328]
[1745336985749,0.001,90708.0,90693.0,0.00013802]
[1745336985944,0.001,90708.0,90694.0,0.22052144]
[1745336986175,0.001,90708.0,90693.0,0.00013802]
[1745336986625,0.00853664,90714.0,90693.0,0.00013802]
[1745336986824,0.01102487,90704.0,90693.0,0.00013802]
[1745336986957,0.01102523,90701.0,90693.0,0.00013802]
[1745336987159,0.0466,90700.0,90693.0,0.00013802]
[1745336987711,0.0110256,90698.0,90693.0,0.00013802]
[1745336988114,0.23154018,90697.0,90693.0,0.00013802]
[1745336988275,0.01102584,90696.0,90693.0,0.00013802]
[1745336988471,0.23154312,90696.0,90693.0,0.00013802]
[1745336988907,0.23153703,90699.0,90693.0,0.00013802]
[1745336988908,0.01102547,90699.0,90693.0,0.00013802]
[1745336989109,0.0466,90700.0,90693.0,0.00013802]
[1745336989847,0.01454085,90705.0,90693.0,0.00013802]
[1745336990068,0.11375594,90704.0,90693.0,0.00013802]
[1745336990296,0.001,90698.0,90693.0,0.00013802]
[1745336990722,0.11375594,90704.0,90693.0,0.00013802]
[1745336990906,0.001,90700.0,90693.0,0.00013802]
[1745336991356,0.11375594,90704.0,90693.0,0.00013802]
[1745336991752,0.001,90698.0,90693.0,0.00013802]
[1745336993383,0.0939,90706.0,90693.0,0.00013802]
[1745336993596,0.11375594,90705.0,90693.0,0.00013802]
[1745336993812,0.001,90704.0,90693.0,0.00013802]
[1745336994249,0.11375594,90705.0,90693.0,0.00013802]
[1745336994687,0.12210269,90705.0,90693.0,0.00013802]
[1745336995581,0.01102499,90703.0,90693.0,0.00013802]
[1745336995804,0.11375594,90702.0,90693.0,0.00013802]
[1745336998626,0.01454085,90696.0,90693.0,0.00013802]
[1745336998842,0.01454085,90694.0,90693.0,0.00013802]
[1745336999105,0.34881854,90694.0,90693.0,0.00013802]
[1745336999536,0.12829679,90694.0,90693.0,0.00013802]
[1745337000200,0.11375594,90694.0,90693.0,0.00013802]
[1745337000420,0.10875594,90694.0,90693.0,0.00013802]
[1745337000838,0.10975594,90694.0,90693.0,0.00013802]
[1745337000950,0.001,90694.0,90693.0,0.00013802]
[1745337001155,0.001,90694.0,90669.0,0.00873662]
[1745337001389,0.001,90694.0,90669.0,0.00013802]
[1745337001570,0.12829679,90693.0,90669.0,0.00013802]
[1745337002877,0.12829679,90693.0,90669.0,0.0086761]
[1745337003176,0.13932299,90693.0,90669.0,0.0086761]
[1745337003329,0.12829679,90693.0,90669.0,0.0086761]
[1745337003685,0.12829679,90693.0,90669.0,0.0146761]
[1745337003912,0.01102633,90692.0,90669.0,0.00613802]
[1745337004081,0.01102633,90692.0,90670.0,0.00688504]
[1745337004082,0.22057799,90671.0,90670.0,0.00688504]
[1745337004302,0.16135594,90671.0,90670.0,0.00688504]
[1745337004800,0.16135594,90671.0,90669.0,0.00613802]
[1745337005036,0.12829679,90670.0,90669.0,0.00013802]
[1745337005258,0.17399679,90670.0,90669.0,0.00013802]
[1745337005517,0.17399679,90670.0,90669.0,0.00613802]
[1745337005928,0.17399679,90670.0,90669.0,0.00013802]
[1745337006344,0.17399679,90670.0,90669.0,0.00113802]
[1745337006582,0.15945594,90670.0,90669.0,0.00113802]
[1745337006794,0.00829213,90670.0,90669.0,0.00013802]
[1745337007256,0.0476,90681.0,90669.0,0.00013802]
[1745337007477,0.11375594,90680.0,90669.0,0.00013802]
[1745337007730,0.00822687,90681.0,90670.0,0.3943732]
[1745337007994,0.324,90699.0,90673.0,0.22057157]
[1745337008203,0.00807816,90686.0,90673.0,0.0022055]
[1745337008433,0.0476,90705.0,90673.0,0.0022055]
[1745337008438,0.324,90708.0,90682.0,0.01102754]
[1745337008690,0.11375594,90707.0,90683.0,0.00220525]
[1745337008904,0.10675594,90707.0,90683.0,0.22275193]
[1745337009112,0.11551777,90707.0,90683.0,0.01086179]
[1745337009496,0.001,90686.0,90684.0,0.22054404]
[1745337009730,0.001,90686.0,90683.0,0.00865654]
[1745337009951,0.12395779,90707.0,90683.0,0.01086179]
[1745337010121,0.12395779,90707.0,90683.0,0.00220525]
[1745337010357,0.12495779,90707.0,90683.0,0.00220525]
[1745337011718,0.00944002,90707.0,90684.0,0.34]
[1745337011945,0.00944002,90707.0,90685.0,0.22274753]
[1745337012119,0.00844002,90707.0,90685.0,0.22274753]
[1745337012261,0.00844002,90707.0,90685.0,0.00220514]
[1745337012476,0.001,90686.0,90684.0,0.34]
[1745337012690,0.001,90686.0,90682.0,0.0465]
[1745337013049,0.0476,90711.0,90686.0,0.22054018]
[1745337013259,0.11375594,90710.0,90688.0,0.22053634]
[1745337013458,0.001,90707.0,90687.0,0.00220514]
[1745337013760,0.01059326,90707.0,90687.0,0.00220514]
[1745337014167,0.11375594,90710.0,90683.0,0.35078474]
[1745337014977,0.12193239,90710.0,90683.0,0.35078474]
[1745337015212,0.12193239,90710.0,90684.0,0.00220514]
[1745337015404,0.12193239,90710.0,90684.0,0.22275044]
[1745337015544,0.001,90707.0,90686.0,0.22053971]
[1745337015751,0.001,90707.0,90687.0,0.00220514]
[1745337016150,0.12193239,90710.0,90687.0,0.00220514]
[1745337016351,0.11493239,90710.0,90684.0,0.22054495]
[1745337016595,0.01980394,90710.0,90683.0,0.57133161]
[1745337016801,0.0110245,90707.0,90683.0,0.01078474]
[1745337016991,0.11375594,90706.0,90683.0,0.01078474]
[1745337017322,0.11375594,90706.0,90680.0,0.61492831]
[1745337017655,0.11375594,90706.0,90680.0,0.3943732]
[1745337018072,0.01880394,90710.0,90681.0,0.11375594]
[1745337018281,0.01102426,90709.0,90681.0,0.11375594]
[1745337018488,0.01102438,90708.0,90681.0,0.11375594]
[1745337018842,0.33424503,90708.0,90681.0,0.35057795]
[1745337018958,0.11375594,90707.0,90681.0,0.34]
[1745337019583,0.11375594,90707.0,90674.0,0.0498]
[1745337019584,0.01102547,90699.0,90670.0,0.4167]
[1745337019780,0.01454085,90697.0,90670.0,0.4167]
[1745337020042,0.11375594,90696.0,90673.0,0.34]
[1745337021038,0.11375594,90696.0,90669.0,0.00013802]
[1745337021039,0.40539977,90690.0,90669.0,0.00013802]
[1745337021243,0.01102693,90687.0,90669.0,0.00013802]
[1745337021438,0.23156339,90688.0,90669.0,0.00013802]
[1745337021641,0.01102718,90685.0,90669.0,0.00013802]
[1745337021848,0.11375594,90685.0,90670.0,0.003]
[1745337022213,0.11375594,90685.0,90669.0,0.00013802]
[1745337022413,0.11375594,90685.0,90669.0,0.00313802]
[1745337022639,0.01454085,90682.0,90669.0,0.00313802]
[1745337023063,0.045,90683.0,90669.0,0.00013802]
[1745337023263,0.045,90683.0,90670.0,0.002]
[1745337023673,0.11375594,90682.0,90670.0,0.002]
[1745337024116,0.10675594,90682.0,90670.0,0.002]
[1745337024469,0.10675594,90682.0,90669.0,0.00013802]
[1745337024803,0.10675594,90682.0,90669.0,0.00213802]
[1745337025330,0.10675594,90682.0,90669.0,0.00013802]
[1745337025494,0.10675594,90682.0,90670.0,0.002]
[1745337026083,0.10675594,90682.0,90669.0,0.00013802]
[1745337026290,0.10675594,90682.0,90669.0,0.00213802]
[1745337027004,0.00826788,90687.0,90669.0,0.00213802]
[1745337027205,0.11375594,90686.0,90669.0,0.00213802]
[1745337027416,0.045,90678.0,90669.0,0.00213802]
[1745337027610,0.01102864,90673.0,90669.0,0.00013802]
[1745337027813,0.23512097,90670.0,90669.0,0.00013802]
[1745337028027,0.73187691,90670.0,90669.0,0.00013802]
[1745337028390,0.73187691,90670.0,90656.0,0.0008462]
[1745337028391,0.22061175,90657.0,90656.0,0.0008462]
[1745337028595,0.37936769,90657.0,90656.0,0.0008462]
[1745337028796,0.37836769,90657.0,90656.0,0.0008462]
[1745337029398,0.38679465,90657.0,90656.0,0.0008462]
[1745337029598,0.38679465,90657.0,90656.0,0.0018462]
[1745337030018,0.4013355,90657.0,90656.0,0.0018462]
[1745337030856,0.3563355,90657.0,90656.0,0.0018462]
[1745337031071,0.3563355,90657.0,90656.0,0.0008462]
[1745337031510,0.3593355,90657.0,90656.0,0.0008462]
[1745337031710,0.3603355,90657.0,90656.0,0.0008462]
[1745337031862,0.6903355,90657.0,90656.0,0.0008462]
[1745337032274,0.48372375,90657.0,90656.0,0.0008462]
[1745337032639,0.47772375,90657.0,90656.0,0.0008462]
[1745337032838,0.01454085,90655.0,90631.0,0.08895659]
[1745337033072,0.11375594,90654.0,90632.0,0.00634632]
[1745337034209,0.11375594,90654.0,90622.0,0.22069671]
[1745337034210,0.01454085,90653.0,90622.0,0.22069671]
[1745337034348,0.01454085,90651.0,90629.0,0.00633559]
[1745337034547,0.01454085,90649.0,90632.0,0.22067163]
[1745337034794,0.00942696,90657.0,90632.0,0.22067163]
[1745337034795,0.11375594,90648.0,90633.0,0.00631448]
[1745337035203,0.11375594,90648.0,90618.0,0.0488]
[1745337035870,0.11375594,90648.0,90621.0,0.0004]
[1745337036074,0.22064881,90642.0,90621.0,0.0004]
[1745337036251,0.22065219,90641.0,90621.0,0.0004]
[1745337036670,0.01103229,90643.0,90621.0,0.0004]
[1745337036871,0.23167613,90644.0,90621.0,0.0004]
[1745337037084,0.01103241,90642.0,90621.0,0.0004]
[1745337037299,0.00013789,90642.0,90631.0,0.42895659]
[1745337037505,0.00013789,90642.0,90640.0,0.0949]
[1745337037705,0.00013789,90642.0,90641.0,0.11375594]
[1745337037901,0.00013789,90642.0,90632.0,0.22684067]
[1745337037902,0.00013789,90642.0,90632.0,0.00616907]
[1745337038353,0.00013789,90642.0,90632.0,0.00837563]
[1745337038553,0.00013789,90642.0,90634.0,0.15250396]
[1745337038877,0.00013789,90642.0,90641.0,0.006]
[1745337039677,0.00256485,90657.0,90641.0,0.006]
[1745337039883,0.001,90657.0,90641.0,0.006]
[1745337040162,0.001,90657.0,90647.0,0.3943732]
[1745337040313,0.00911763,90657.0,90647.0,0.3943732]
[1745337040723,0.001,90657.0,90654.0,0.22061721]
[1745337041283,0.001,90657.0,90655.0,0.00565532]
[1745337041482,0.001,90657.0,90656.0,0.22282017]
[1745337041897,0.001,90657.0,90656.0,0.22896822]
[1745337042272,0.01084344,90680.0,90657.0,0.22061175]
[1745337042488,0.00013812,90680.0,90660.0,0.3943732]
[1745337042699,0.00013812,90680.0,90664.0,0.22059377]
[1745337042700,0.00824005,90680.0,90664.0,0.22059377]
[1745337043176,0.00824005,90680.0,90662.0,0.22059958]
[1745337043177,0.00013812,90680.0,90665.0,0.22279787]
[1745337043798,0.00013812,90680.0,90665.0,0.00220567]
[1745337044341,0.00413812,90680.0,90665.0,0.00220567]
[1745337044543,0.00413812,90680.0,90668.0,0.22058377]
[1745337044751,0.00013812,90680.0,90669.0,0.00564932]
[1745337044951,0.00013812,90680.0,90665.0,0.00220567]
[1745337045240,0.00013812,90680.0,90666.0,0.00605822]
[1745337045467,0.00013812,90680.0,90669.0,0.22058144]
[1745337045725,0.00013812,90680.0,90670.0,0.3943732]
[1745337045919,0.00013812,90680.0,90663.0,0.22059477]
[1745337046189,0.00013812,90680.0,90671.0,0.00041859]
[1745337046387,0.00013812,90680.0,90665.0,0.22059217]
[1745337046627,0.00013812,90680.0,90672.0,0.00041859]
[1745337046628,0.00959953,90680.0,90672.0,0.00041859]
[1745337046830,0.00959953,90680.0,90665.0,0.22059217]
[1745337047070,0.00859953,90680.0,90666.0,0.00042217]
[1745337047299,0.00859953,90680.0,90666.0,0.22101183]
[1745337047512,0.002,90680.0,90665.0,0.22059103]
[1745337047722,0.002,90680.0,90667.0,0.00042217]
[1745337047962,0.5,90688.0,90662.0,0.2205981]
[1745337048172,0.5,90688.0,90668.0,0.00042217]
[1745337048426,0.5,90688.0,90681.0,0.22055186]
[1745337048427,0.50843072,90688.0,90681.0,0.22055186]
[1745337048632,0.00018869,90683.0,90670.0,0.3943732]
[1745337048837,0.00018869,90683.0,90675.0,0.2205676]
[1745337049039,0.00018869,90683.0,90673.0,0.2205708]
[1745337049193,0.00018869,90683.0,90673.0,0.22057248]
[1745337049638,0.00018869,90683.0,90669.0,0.22668245]
[1745337049639,0.001,90680.0,90669.0,0.22668245]
[1745337050001,0.001,90680.0,90669.0,0.0061004]
[1745337050274,0.00018869,90683.0,90669.0,0.0061004]
[1745337050474,0.00318869,90683.0,90669.0,0.0061004]
[1745337051390,0.00318869,90683.0,90671.0,0.22057721]
[1745337051614,0.00318869,90683.0,90669.0,0.0061004]
[1745337051615,0.00018869,90683.0,90669.0,0.0061004]
[1745337051767,0.00018869,90683.0,90670.0,0.22057997]
[1745337051963,0.00018869,90683.0,90671.0,0.00591256]